fUST/lending_fUST_20250827
["ID","MTS","AMOUNT","RATE_DAILY","PERIOD"]
[381569201,1756285870746,-673.98,0.00024261,2]
[381569202,1756285870755,-480.0,0.00024261,2]
[381569203,1756285870765,-480.0,0.00024261,2]
[381569204,1756285870774,-480.0,0.00024261,2]
[381569205,1756285870783,-480.0,0.00024261,2]
[381569206,1756285870792,-1020.13,0.00024261,2]
[381569207,1756285870800,-578.37,0.00024261,2]
[381569208,1756285870809,-480.0,0.00024261,2]
[381569209,1756285870818,-404.27670819,0.00024261,2]
[381569210,1756285870827,-480.0,0.00024261,2]
[381569211,1756285870836,-624.75,0.00024261,2]
[381569212,1756285870846,-781.52,0.00024261,2]
[381569213,1756285870855,-480.0,0.00024261,2]
[381569214,1756285870864,-1465.99,0.00024261,2]
[381569215,1756285870873,-480.0,0.00024261,2]
[381569216,1756285870882,-480.0,0.00024261,2]
[381569217,1756285870892,-480.0,0.00024261,2]
[381569218,1756285870901,-743.51,0.00024261,2]
[381569219,1756285870910,-1289.28,0.00024261,2]
[381569220,1756285870919,-480.0,0.00024261,2]
[381569221,1756285870928,-480.0,0.00024261,2]
[381569222,1756285870937,-625.0,0.00024261,2]
[381569223,1756285870947,-480.0,0.00024261,2]
[381569224,1756285870956,-486.16,0.00024261,2]
[381569225,1756285870965,-568.25,0.00024261,2]
[381569226,1756285870975,-515.56,0.00024261,2]
[381569227,1756285870984,-480.0,0.00024261,2]
[381569228,1756285870994,-781.98,0.00024261,2]
[381569229,1756285871003,-832.33,0.00024261,2]
[381569230,1756285871013,-480.0,0.00024261,2]
[381569231,1756285871031,-480.0,0.00024261,2]
[381569232,1756285871050,-480.0,0.00024261,2]
[381569233,1756285871068,-480.0,0.00024261,2]
[381569234,1756285871089,-480.0,0.00024261,2]
[381569235,1756285871110,-480.0,0.00024261,2]
[381569236,1756285871127,-503.83,0.00024261,2]
[381569237,1756285871146,-550.42,0.00024261,2]
[381569238,1756285871160,-831.45,0.00024261,2]
[381569239,1756285871177,-938.52,0.00024261,2]
[381569240,1756285871196,-480.0,0.00024261,2]
[381569241,1756285871216,-277.56048157,0.00024261,2]
[381569242,1756285871229,-493.45,0.00024261,2]
[381569243,1756285871246,-863.4,0.00024261,2]
[381569244,1756285871261,-266.71,0.00024261,2]
[381569245,1756285871278,-270.92917611,0.00024261,2]
[381569246,1756285871291,-480.0,0.00024261,2]
[381569247,1756285871307,-480.0,0.00024261,2]
[381569248,1756285871322,-480.0,0.00024261,2]
[381569249,1756285871338,-480.0,0.00024261,2]
[381569250,1756285871352,-480.0,0.00024261,2]
[381569251,1756285871368,-13314.52,0.00024261,2]
[381569252,1756285871383,-774.15,0.00024261,2]
[381569253,1756285871397,-480.0,0.00024261,2]
[381569254,1756285871412,-1134.59,0.00024261,2]
[381569255,1756285871427,-480.0,0.00024261,2]
[381569256,1756285871441,-480.0,0.00024261,2]
[381569257,1756285871457,-480.0,0.00024261,2]
[381569258,1756285871473,-1411.35,0.00024261,2]
[381569259,1756285871487,-480.0,0.00024262,2]
[381569260,1756285871502,-452.8483116,0.00024262,2]
[381569261,1756285871517,-480.0,0.00024262,2]
[381569262,1756285871533,-582.13,0.00024262,2]
[381569263,1756285871548,-519.91388181,0.00024262,2]
[381569264,1756285871565,-373.24998421,0.00024262,2]
[381569265,1756285871581,-480.0,0.00024262,2]
[381569266,1756285871597,-480.0,0.00024262,2]
[381569267,1756285871613,-480.0,0.00024262,2]
[381569268,1756285871627,-511.69,0.00024262,2]
[381569269,1756285871642,-525.01,0.00024262,2]
[381569270,1756285871658,-480.0,0.00024262,2]
[381569271,1756285871672,-480.0,0.00024262,2]
[381569272,1756285871687,-1917.35,0.00024262,2]
[381569273,1756285871703,-783.15,0.00024262,2]
[381569274,1756285871718,-480.0,0.00024262,2]
[381569275,1756285871732,-516.6,0.00024262,2]
[381569276,1756285871747,-480.0,0.00024262,2]
[381569277,1756285871762,-1140.75,0.00024262,2]
[381569278,1756285871777,-480.0,0.00024262,2]
[381569279,1756285871792,-480.0,0.00024262,2]
[381569280,1756285871806,-700.94,0.00024262,2]
[381569281,1756285871825,-3208.7,0.00024262,2]
[381569282,1756285871840,-480.0,0.00024262,2]
[381569283,1756285871856,-779.72,0.00024262,2]
[381569284,1756285871870,-1513.85,0.00024262,2]
[381569285,1756285871886,-1234.21,0.00024262,2]
[381569286,1756285871901,-480.0,0.00024262,2]
[381569287,1756285871916,-480.0,0.00024262,2]
[381569288,1756285871933,-1074.18,0.00024262,2]
[381569289,1756285871947,-651.98,0.00024262,2]
[381569290,1756285871962,-880.36,0.00024262,2]
[381569291,1756285871976,-506.76,0.00024262,2]
[381569292,1756285871991,-480.0,0.00024262,2]
[381569293,1756285872006,-2039.07,0.00024262,2]
[381569294,1756285872021,-480.0,0.00024262,2]
[381569295,1756285872036,-1038.1,0.00024262,2]
[381569296,1756285872050,-480.0,0.00024262,2]
[381569297,1756285872065,-930.51,0.00024262,2]
[381569298,1756285872080,-1610.0,0.00024262,2]
[381569299,1756285872097,-480.0,0.00024262,2]
[381569300,1756285872111,-480.0,0.00024262,2]
[381569301,1756285872126,-480.0,0.00024262,2]
[381569302,1756285872141,-1381.94,0.00024262,2]
[381569303,1756285872155,-480.0,0.00024262,2]
[381569304,1756285872172,-480.0,0.00024262,2]
[381569305,1756285872186,-662.23,0.00024262,2]
[381569306,1756285872200,-524.45,0.00024262,2]
[381569307,1756285872214,-605.68,0.00024262,2]
[381569308,1756285872229,-480.0,0.00024262,2]
[381569309,1756285872243,-480.0,0.00024262,2]
[381569310,1756285872256,-840.05,0.00024262,2]
[381569311,1756285872270,-480.0,0.00024262,2]
[381569312,1756285872284,-505.0,0.00024262,2]
[381569313,1756285872299,-491.96,0.00024262,2]
[381569314,1756285872312,-480.0,0.00024262,2]
[381569315,1756285872327,-480.0,0.00024262,2]
[381569316,1756285872341,-934.27,0.00024262,2]
[381569317,1756285872355,-480.0,0.00024262,2]
[381569318,1756285872369,-609.61,0.00024262,2]
[381569319,1756285872383,-807.48,0.00024262,2]
[381569320,1756285872399,-669.06,0.00024262,2]
[381569321,1756285872413,-480.0,0.00024262,2]
[381569322,1756285872427,-480.0,0.00024262,2]
[381569323,1756285872441,-516.23,0.00024262,2]
[381569324,1756285872454,-480.0,0.00024262,2]
[381569325,1756285872464,-901.21,0.00024262,2]
[381569326,1756285872473,-480.0,0.00024262,2]
[381569327,1756285872680,-480.0,0.00024262,2]
[381569328,1756285872700,-480.0,0.00024262,2]
[381569329,1756285872719,-722.63,0.00024262,2]
[381569330,1756285872729,-480.0,0.00024262,2]
[381569331,1756285872738,-849.45,0.00024262,2]
[381569332,1756285872748,-480.0,0.00024262,2]
[381569333,1756285872757,-480.0,0.00024262,2]
[381569334,1756285872766,-480.0,0.00024262,2]
[381569335,1756285872776,-968.86,0.00024262,2]
[381569336,1756285872786,-1060.07,0.00024262,2]
[381569337,1756285872798,-615.02,0.00024262,2]
[381569338,1756285872812,-480.0,0.00024262,2]
[381569339,1756285872821,-784.01,0.00024262,2]
[381569340,1756285872835,-480.0,0.00024262,2]
[381569341,1756285872851,-501.06,0.00024262,2]
[381569342,1756285872860,-480.0,0.00024262,2]
[381569343,1756285872870,-1471.98,0.00024262,2]
[381569344,1756285872879,-480.0,0.00024262,2]
[381569345,1756285872889,-525.55,0.00024262,2]
[381569346,1756285872898,-800.69,0.00024262,2]
[381569347,1756285872908,-480.0,0.00024262,2]
[381569348,1756285872918,-480.0,0.00024262,2]
[381569349,1756285872927,-480.0,0.00024262,2]
[381569350,1756285872937,-926.66,0.00024262,2]
[381569351,1756285872947,-480.0,0.00024262,2]
[381569352,1756285872956,-480.0,0.00024262,2]
[381569353,1756285872966,-800.84,0.00024262,2]
[381569354,1756285872975,-563.33,0.00024262,2]
[381569355,1756285872984,-480.0,0.00024262,2]
[381569356,1756285872993,-943.39,0.00024262,2]
[381569357,1756285873003,-480.0,0.00024262,2]
[381569358,1756285873012,-2384.24,0.00024262,2]
[381569359,1756285873021,-530.94,0.00024262,2]
[381569360,1756285873030,-461.70192275,0.00024262,2]
[381569361,1756285873040,-706.24,0.00024262,2]
[381569362,1756285873049,-816.28,0.00024262,2]
[381569363,1756285873059,-480.0,0.00024263,2]
[381569364,1756285873068,-482.27556809,0.00024263,2]
[381569365,1756285873078,-480.0,0.00024263,2]
[381569366,1756285873091,-480.0,0.00024263,2]
[381569367,1756285873102,-480.0,0.00024263,2]
[381569368,1756285873111,-480.0,0.00024263,2]
[381569369,1756285873121,-860.83,0.00024263,2]
[381569370,1756285873131,-838.66,0.00024263,2]
[381569371,1756285873140,-480.0,0.00024263,2]
[381569372,1756285873151,-672.4,0.00024263,2]
[381569373,1756285873162,-1500.0,0.00024268,2]
[381569374,1756285873172,-1500.0,0.00024268,2]
[381569375,1756285873181,-1500.0,0.00024268,2]
[381569376,1756285873192,-1500.0,0.00024268,2]
[381569377,1756285873201,-2133.04069438,0.00024292,2]
[381569378,1756285873211,-151.0,0.000243,8]
[381569379,1756285873220,-1017.80559892,0.00024318,2]
[381569380,1756285873230,-1000.0,0.00024321,2]
[381569381,1756285873240,-1000.0,0.00024321,2]
[381569382,1756285873251,-893.6560695,0.00024321,2]
[381569383,1756285873262,-500.0,0.00024321,2]
[381569384,1756285873272,-1000.0,0.00024321,2]
[381569385,1756285873282,-1000.0,0.00024321,2]
[381569386,1756285873292,-1000.0,0.00024321,2]
[381569387,1756285873302,-1000.0,0.00024321,2]
[381569388,1756285873312,-1000.0,0.00024321,2]
[381569389,1756285873322,-1000.0,0.00024321,2]
[381569390,1756285873332,-1000.0,0.00024321,2]
[381569391,1756285873343,-1000.0,0.00024321,2]
[381569392,1756285873353,-1000.0,0.00024321,2]
[381569393,1756285873364,-1000.0,0.00024321,2]
[381569394,1756285873373,-1000.0,0.00024321,2]
[381569395,1756285873384,-1000.0,0.00024321,2]
[381569396,1756285873394,-480.0,0.00024357,2]
[381569397,1756285873404,-980.51,0.00024357,2]
[381569398,1756285873415,-1507.06,0.00024357,2]
[381569399,1756285873426,-2202.7,0.00024357,2]
[381569400,1756285873436,-3390.88,0.00024357,2]
[381569401,1756285873446,-480.0,0.00024359,2]
[381569402,1756285873457,-504.45,0.00024359,2]
[381569403,1756285873467,-480.0,0.00024359,2]
[381569404,1756285873477,-1844.79,0.00024359,2]
[381569405,1756285873486,-695.09,0.00024359,2]
[381569406,1756285873496,-626.12,0.00024359,2]
[381569407,1756285873506,-480.0,0.00024359,2]
[381569408,1756285873723,-4054.27,0.00024359,2]
[381569409,1756285873734,-7453.14,0.00024359,2]
[381569410,1756285873744,-1277.04,0.00024359,2]
[381569411,1756285873754,-630.33,0.00024359,2]
[381569412,1756285873763,-2352.9,0.00024359,2]
[381569413,1756285873773,-829.42,0.00024359,2]
[381569414,1756285873783,-151.0,0.000244,6]
[381569415,1756285873792,-6514.82,0.000244,7]
[381569416,1756285873803,-91386.38,0.000244,7]
[381569417,1756285873812,-14696.75,0.000244,2]
[381569418,1756285873822,-2945.00261208,0.00024417,5]
[381569419,1756285873832,-480.0,0.00024447,2]
[381569420,1756285873841,-480.0,0.00024447,2]
[381569421,1756285873851,-480.0,0.00024447,2]
[381569422,1756285873860,-480.0,0.00024447,2]
[381569423,1756285873870,-480.0,0.00024447,2]
[381569424,1756285873880,-480.0,0.00024447,2]
[381569425,1756285873889,-2736.5,0.00024447,2]
[381569426,1756285873899,-2843.68,0.00024447,2]
[381569427,1756285873908,-13159.72,0.00024447,2]
[381569428,1756285873918,-3876.01,0.00024447,2]
[381569429,1756285873927,-480.0,0.00024447,2]
[381569430,1756285873936,-560.35,0.00024447,2]
[381569431,1756285873946,-2907.02,0.00024447,2]
[381569432,1756285873955,-480.0,0.00024447,2]
[381569433,1756285873965,-480.0,0.00024447,2]
[381569434,1756285873974,-510.86,0.00024447,2]
[381569435,1756285873983,-1176.8,0.00024447,2]
[381569436,1756285873995,-480.0,0.00024447,2]
[381569437,1756285874005,-2885.07,0.00024447,2]
[381569438,1756285874015,-480.0,0.0002449,2]
[381569439,1756285874026,-443.1953117,0.0002449,2]
[381569440,1756285874036,-480.0,0.0002449,2]
[381569441,1756285874046,-480.0,0.0002449,2]
[381569442,1756285874056,-482.4674001,0.0002449,2]
[381569443,1756285874068,-1304.71,0.0002449,2]
[381569444,1756285874077,-500.0,0.0002449,2]
[381569445,1756285874089,-5219.83486716,0.00024498,2]
[381569446,1756285874100,-862.36023547,0.00024499,2]
[381569447,1756285874111,-1000.0,0.000245,2]
[381569448,1756285874120,-1499.0,0.00024506,2]
[381569449,1756285874131,-1194.1,0.00024513,3]
[381569450,1756285874141,-597.06,0.00024513,3]
[381569451,1756285874152,-209.40437684,0.00024521,2]
[381569452,1756285874163,-2388.2,0.00024523,3]
[381569453,1756285874174,-480.0,0.00024523,2]
[381569454,1756285874183,-480.0,0.00024523,2]
[381569455,1756285874192,-541.47,0.00024523,2]
[381569456,1756285874202,-498.9,0.00024523,2]
[381569457,1756285874211,-563.3,0.00024523,2]
[381569458,1756285874220,-480.0,0.00024523,2]
[381569459,1756285874230,-480.0,0.00024523,2]
[381569460,1756285874239,-480.0,0.00024523,2]
[381569461,1756285874249,-480.0,0.00024523,2]
[381569462,1756285874259,-720.79,0.00024523,2]
[381569463,1756285874269,-480.0,0.00024523,2]
[381569464,1756285874279,-480.0,0.00024523,2]
[381569465,1756285874288,-480.0,0.00024523,2]
[381569466,1756285874298,-480.0,0.00024523,2]
[381569467,1756285874308,-501.91,0.00024523,2]
[381569468,1756285874318,-480.0,0.00024523,2]
[381569469,1756285874327,-730.1,0.00024523,2]
[381569470,1756285874337,-702.89,0.00024523,2]
[381569471,1756285874346,-565.76,0.00024523,2]
[381569472,1756285874355,-674.26,0.00024523,2]
[381569473,1756285874366,-480.0,0.00024523,2]
[381569474,1756285874376,-679.8,0.00024523,2]
[381569475,1756285874386,-480.0,0.00024523,2]
[381569476,1756285874396,-449.11489423,0.00024523,2]
[381569477,1756285874406,-480.0,0.00024523,2]
[381569478,1756285874415,-712.05,0.00024523,2]
[381569479,1756285874425,-333.62752835,0.00024523,2]
[381569480,1756285874771,-146.37247165,0.00024523,2]
[381569481,1756285874781,-480.0,0.00024523,2]
[381569482,1756285874791,-979.4,0.00024523,2]
[381569483,1756285874801,-712.53,0.00024523,2]
[381569484,1756285874810,-1469.65,0.00024523,2]
[381569485,1756285874819,-480.0,0.00024523,2]
[381569486,1756285874828,-639.0,0.00024523,2]
[381569487,1756285874837,-480.0,0.00024523,2]
[381569488,1756285874846,-480.0,0.00024523,2]
[381569489,1756285874855,-817.51,0.00024523,2]
[381569490,1756285874865,-480.0,0.00024523,2]
[381569491,1756285874874,-672.32,0.00024523,2]
[381569492,1756285874885,-506.58,0.00024523,2]
[381569493,1756285874895,-4677.51,0.00024523,2]
[381569494,1756285874904,-403.1219285,0.00024523,2]
[381569495,1756285874914,-480.0,0.00024523,2]
[381569496,1756285874923,-2100.06,0.00024523,2]
[381569497,1756285874932,-657.34,0.00024523,2]
[381569498,1756285874941,-1882.32,0.00024523,2]
[381569499,1756285874950,-587.34,0.00024523,2]
[381569500,1756285874962,-2412.59,0.00024523,2]
[381569501,1756285874972,-480.0,0.00024523,2]
[381569502,1756285874982,-480.0,0.00024523,2]
[381569503,1756285874991,-495.16,0.00024523,2]
[381569504,1756285875000,-480.0,0.00024523,2]
[381569505,1756285875010,-480.0,0.00024523,2]
[381569506,1756285875020,-820.71,0.00024523,2]
[381569507,1756285875029,-480.0,0.00024523,2]
[381569508,1756285875038,-748.5,0.00024523,2]
[381569509,1756285875047,-480.0,0.00024523,2]
[381569510,1756285875056,-549.5,0.00024523,2]
[381569511,1756285875066,-536.98,0.00024523,2]
[381569512,1756285875075,-1687.19,0.00024523,2]
[381569513,1756285875086,-480.0,0.00024523,2]
[381569514,1756285875099,-1124.67,0.00024523,2]
[381569515,1756285875109,-939.76,0.00024523,2]
[381569516,1756285875119,-1595.38,0.00024524,3]
[381569517,1756285875128,-797.68,0.00024524,3]
[381569518,1756285875137,-398.84,0.00024524,3]
[381569519,1756285875148,-3063.48,0.00024524,3]
[381569520,1756285875160,-845.298898,0.0002453,3]
[381569521,1756285875171,-160.0,0.0002453,3]
[381569522,1756285875180,-160.0,0.0002453,3]
[381569523,1756285875190,-217.23771399,0.0002453,3]
[381569524,1756285875202,-425.44119842,0.0002453,3]
[381569525,1756285875212,-529.56067766,0.0002453,3]
[381569526,1756285875221,-160.0,0.0002453,3]
[381569527,1756285875230,-160.0,0.0002453,3]
[381569528,1756285875240,-232.59867797,0.0002453,3]
[381569529,1756285875249,-160.0,0.0002453,3]
[381569530,1756285875259,-973.37,0.00024531,2]
[381569531,1756285875268,-598.01,0.00024531,2]
[381569532,1756285875277,-480.0,0.00024531,2]
[381569533,1756285875286,-480.0,0.00024531,2]
[381569534,1756285875295,-480.0,0.00024531,2]
[381569535,1756285875305,-480.0,0.00024531,2]
[381569536,1756285875314,-480.0,0.00024531,2]
[381569537,1756285875323,-480.0,0.00024531,2]
[381569538,1756285875333,-480.0,0.00024531,2]
[381569539,1756285875342,-480.0,0.00024531,2]
[381569540,1756285875351,-692.86,0.00024531,2]
[381569541,1756285875361,-480.0,0.00024531,2]
[381569542,1756285875370,-480.0,0.00024531,2]
[381569543,1756285875379,-823.54,0.00024531,2]
[381569544,1756285875388,-480.0,0.00024531,2]
[381569545,1756285875399,-904.0,0.00024531,2]
[381569546,1756285875408,-539.95,0.00024531,2]
[381569547,1756285875417,-543.54,0.00024531,2]
[381569548,1756285875426,-480.0,0.00024531,2]
[381569549,1756285875435,-589.92,0.00024531,2]
[381569550,1756285875444,-480.0,0.00024531,2]
[381569551,1756285875454,-573.33,0.00024531,2]
[381569552,1756285875463,-518.46,0.00024531,2]
[381569553,1756285875473,-1072.36,0.00024531,2]
[381569554,1756285875482,-661.31,0.00024531,2]
[381569555,1756285875492,-480.0,0.00024531,2]
[381569556,1756285875501,-480.0,0.00024531,2]
[381569557,1756285875510,-1579.27,0.00024531,2]
[381569558,1756285875520,-480.0,0.00024531,2]
[381569559,1756285875529,-2289.21,0.00024531,2]
[381569560,1756285875715,-480.0,0.00024531,2]
[381569561,1756285875726,-1276.73,0.00024531,2]
[381569562,1756285875736,-173.65381616,0.00024531,2]
[381569563,1756285875745,-588.66,0.00024531,2]
[381569564,1756285875754,-480.0,0.00024531,2]
[381569565,1756285875764,-480.0,0.00024531,2]
[381569566,1756285875774,-480.0,0.00024531,2]
[381569567,1756285875783,-638.04,0.00024531,2]
[381569568,1756285875792,-483.41,0.00024531,2]
[381569569,1756285875801,-565.0,0.00024531,2]
[381569570,1756285875810,-480.0,0.00024531,2]
[381569571,1756285875819,-726.75,0.00024531,2]
[381569572,1756285875829,-737.76,0.00024531,2]
[381569573,1756285875838,-480.0,0.00024531,2]
[381569574,1756285875847,-480.0,0.00024531,2]
[381569575,1756285875856,-755.95,0.00024531,2]
[381569576,1756285875864,-546.92,0.00024531,2]
[381569577,1756285875874,-480.0,0.00024531,2]
[381569578,1756285875883,-480.0,0.00024531,2]
[381569579,1756285875892,-1220.67,0.00024531,2]
[381569580,1756285875903,-178.23093286,0.00024531,2]
[381569581,1756285875912,-1004.72,0.00024531,2]
[381569582,1756285875921,-624.24,0.00024531,2]
[381569583,1756285875931,-831.69,0.00024531,2]
[381569584,1756285875942,-1158.97,0.00024531,2]
[381569585,1756285875951,-894.53,0.00024531,2]
[381569586,1756285875960,-578.64,0.00024531,2]
[381569587,1756285875970,-553.43,0.00024531,2]
[381569588,1756285875979,-480.0,0.00024531,2]
[381569589,1756285875988,-1766.57,0.00024531,2]
[381569590,1756285875998,-518.24,0.00024531,2]
[381569591,1756285876007,-1075.97,0.00024531,2]
[381569592,1756285876016,-480.0,0.00024531,2]
[381569593,1756285876026,-480.0,0.00024531,2]
[381569594,1756285876036,-480.0,0.00024531,2]
[381569595,1756285876045,-480.0,0.00024531,2]
[381569596,1756285876054,-480.0,0.00024531,2]
[381569597,1756285876064,-480.0,0.00024531,2]
[381569598,1756285876073,-580.93,0.00024531,2]
[381569599,1756285876083,-480.0,0.00024531,2]
[381569600,1756285876096,-480.0,0.00024531,2]
[381569601,1756285876106,-604.48,0.00024531,2]
[381569602,1756285876115,-482.24467229,0.00024531,2]
[381569603,1756285876124,-912.71,0.00024531,2]
[381569604,1756285876134,-712.92,0.00024531,2]
[381569605,1756285876144,-693.87,0.00024531,2]
[381569606,1756285876157,-842.6,0.00024531,2]
[381569607,1756285876167,-480.0,0.00024531,2]
[381569608,1756285876177,-764.06,0.00024531,2]
[381569609,1756285876187,-480.09,0.00024533,2]
[381569610,1756285876196,-480.0,0.00024533,2]
[381569611,1756285876206,-928.11,0.00024533,2]
[381569612,1756285876215,-480.0,0.00024533,2]
[381569613,1756285876225,-1912.74,0.00024533,2]
[381569614,1756285876234,-7935.53,0.00024533,2]
[381569615,1756285876243,-3188.91,0.00024533,2]
[381569616,1756285876252,-661.24,0.00024533,2]
[381569617,1756285876261,-1287.31,0.00024533,2]
[381569618,1756285876271,-7833.3,0.00024533,2]
[381569619,1756285876280,-1493.34,0.00024534,2]
[381569620,1756285876290,-824.96,0.00024534,2]
[381569621,1756285876299,-579.94,0.00024534,2]
[381569622,1756285876309,-830.02,0.00024534,2]
[381569623,1756285876318,-970.25,0.00024534,2]
[381569624,1756285876327,-480.0,0.00024534,2]
[381569625,1756285876337,-786.53,0.00024534,2]
[381569626,1756285876346,-848.93,0.00024534,2]
[381569627,1756285876356,-789.12,0.00024534,2]
[381569628,1756285876365,-1366.37,0.00024534,2]
[381569629,1756285876374,-566.14,0.00024534,2]
[381569630,1756285876384,-480.0,0.00024534,2]
[381569631,1756285876396,-678.67,0.00024534,2]
[381569632,1756285876406,-822.43,0.00024534,2]
[381569633,1756285876415,-1389.22,0.00024534,2]
[381569634,1756285876425,-704.2,0.00024534,2]
[381569635,1756285876434,-792.52,0.00024534,2]
[381569636,1756285876444,-1169.64,0.00024534,2]
[381569637,1756285876453,-480.0,0.00024534,2]
[381569638,1756285876463,-480.0,0.00024534,2]
[381569639,1756285876473,-1043.59,0.00024534,2]
[381569640,1756285876482,-480.0,0.00024534,2]
[381569641,1756285876492,-480.0,0.00024534,2]
[381569642,1756285876501,-618.15,0.00024534,2]
[381569643,1756285876511,-1320.45,0.00024534,2]
[381569644,1756285876520,-841.41,0.00024534,2]
[381569645,1756285876529,-619.37,0.00024534,2]
[381569646,1756285876539,-533.22,0.00024534,2]
[381569647,1756285876549,-872.01,0.00024534,2]
[381569648,1756285876559,-646.46,0.00024534,2]
[381569649,1756285876569,-578.44869817,0.00024534,2]
[381569650,1756285876578,-480.0,0.00024534,2]
[381569651,1756285876587,-938.57,0.00024534,2]
[381569652,1756285876597,-597.03,0.00024534,2]
[381569653,1756285876606,-942.59,0.00024534,2]
[381569654,1756285876616,-2221.35,0.00024534,2]
[381569655,1756285876627,-480.0,0.00024534,2]
[381569656,1756285876643,-730.56,0.00024534,2]
[381569657,1756285876653,-480.0,0.00024534,2]
[381569658,1756285876663,-480.0,0.00024534,2]
[381569659,1756285876672,-1151.88,0.00024534,2]
[381569660,1756285876681,-723.52,0.00024534,2]
[381569661,1756285876691,-622.95,0.00024534,2]
[381569662,1756285876701,-722.75,0.00024534,2]
[381569663,1756285876711,-2892.81,0.00024534,2]
[381569664,1756285876721,-1014.18,0.00024534,2]
[381569665,1756285876730,-480.0,0.00024534,2]
[381569666,1756285876739,-1664.28,0.00024534,2]
[381569667,1756285876749,-480.0,0.00024534,2]
[381569668,1756285876758,-989.88,0.00024534,2]
[381569669,1756285876767,-954.3,0.00024534,2]
[381569670,1756285876777,-696.96,0.00024534,2]
[381569671,1756285876786,-1583.05,0.00024534,2]
[381569672,1756285876796,-1095.71,0.00024534,2]
[381569673,1756285876805,-1292.01,0.00024534,2]
[381569674,1756285876815,-7005.01,0.00024534,2]
[381569675,1756285876824,-1021.23,0.00024534,2]
[381569676,1756285876834,-480.0,0.00024534,2]
[381569677,1756285876843,-480.0,0.00024534,2]
[381569678,1756285876853,-1613.16,0.00024534,2]
[381569679,1756285876864,-767.01,0.00024534,2]
[381569680,1756285876873,-1041.73,0.00024534,2]
[381569681,1756285876882,-480.0,0.00024534,2]
[381569682,1756285876892,-1932.71,0.00024534,2]
[381569683,1756285876903,-480.0,0.00024534,2]
[381569684,1756285876912,-480.0,0.00024534,2]
[381569685,1756285876921,-1275.38,0.00024534,2]
[381569686,1756285876931,-480.0,0.00024534,2]
[381569687,1756285876941,-480.0,0.00024534,2]
[381569688,1756285876950,-828.36,0.00024534,2]
[381569689,1756285876960,-596.07,0.00024534,2]
[381569690,1756285876970,-971.07,0.00024534,2]
[381569691,1756285876979,-550.29715457,0.00024534,2]
[381569692,1756285876989,-777.08,0.00024534,2]
[381569693,1756285876999,-591.62,0.00024534,2]
[381569694,1756285877009,-626.87,0.00024534,2]
[381569695,1756285877020,-480.0,0.00024534,2]
[381569696,1756285877030,-480.0,0.00024534,2]
[381569697,1756285877039,-480.0,0.00024534,2]
[381569698,1756285877049,-866.92,0.00024534,2]
[381569699,1756285877058,-480.0,0.00024535,2]
[381569700,1756285877067,-880.24,0.00024535,2]